Cogmind - Beta 9.6 *** ADVENTURER MODE // 2020.08.17 @ 04:46:39 Player: ofunderland Result: Core destroyed Performance ------------- Evolutions (4) 2000 Regions Visited (6) 1200 Robots Destroyed (6) 30 Value Destroyed (111) 111 Prototype IDs (0) 0 Alien Tech Used (0) 0 Bonus (0) 0 TOTAL SCORE: 3341 Bonus ------- None Cogmind --------- Core Integrity 0/850 Matter 300/300 Energy 100/100 System Corruption 0% Temperature Cool (0) Movement Core (50) Location -6/Factory Parts ------- > --- POWER (3) -------- (None) > --- PROPULSION (4) --- (None) > --- UTILITY (4) ------ (None) > --- WEAPON (4) ------- (None) > --- INVENTORY (4) ---- (None) Peak State ------------ > --- POWER ------------ Light Ion Engine > --- PROPULSION ------- Wheel Compact Wheel > --- UTILITY ---------- Small Storage Unit > --- WEAPON ----------- Medium Laser Light Assault Rifle > --- INVENTORY -------- Ion Engine Aluminum Leg Aluminum Leg [Rating: 6] Favorites ----------- Power Light Ion Engine Engine Light Ion Engine Propulsion Compact Wheel Wheel Compact Wheel Utility Small Storage Unit Storage Small Storage Unit Weapon Light Assault Rifle Energy Gun Medium Laser Ballistic Gun Light Assault Rifle Build | -11 -10 -10 -9 -8 -7 -6 ------- Run | Scr Mat Min Mat Mat Fac Fac Slots Evolved 8 | . . . 2 2 2 2 Power 2 | . . . . 2 . . Propulsion 2 | . . . 2 . . . Utility 2 | . . . . . . 2 Weapon 2 | . . . . . 2 . Parts Attached 7 | 6 . . . 1 . . Power 2 | 1 . . . 1 . . Engine 2 | 1 . . . 1 . . Core . | . . . . . . . Reactor . | . . . . . . . Propulsion 2 | 2 . . . . . . Treads . | . . . . . . . Leg . | . . . . . . . Wheel 2 | 2 . . . . . . Hover . | . . . . . . . Flight . | . . . . . . . Utility 1 | 1 . . . . . . Device . | . . . . . . . Storage 1 | 1 . . . . . . Processor . | . . . . . . . Hackware . | . . . . . . . Protection . | . . . . . . . Artifact . | . . . . . . . Weapon 2 | 2 . . . . . . Energy Gun 1 | 1 . . . . . . Energy Cannon . | . . . . . . . Ballistic Gun 1 | 1 . . . . . . Ballistic Cannon . | . . . . . . . Launcher . | . . . . . . . Special Weapon . | . . . . . . . Impact Weapon . | . . . . . . . Slashing Weapon . | . . . . . . . Piercing Weapon . | . . . . . . . Special Melee Weapon . | . . . . . . . Unidentified Prototypes . | . . . . . . . Parts Lost 2 | . . 1 1 . . . Power . | . . . . . . . Propulsion . | . . . . . . . Utility . | . . . . . . . Weapon 2 | . . 1 1 . . . Highest Loss Streak 1 | . . 1 1 . . . Average Slot Usage (%) 18 | . 83 54 26 2 . . Engine 1 | . 12 . . . . . Wheel 6 | . 28 14 11 1 . . Storage 4 | . 14 14 11 1 . . Energy Gun 2 | . 14 11 . . . . Ballistic Gun 3 | . 14 14 4 . . . Naked Turns 488 | . . . . 71 129 288 Heaviest Build 10 | 10 10 7 5 4 . . Greatest Support 26 | 26 26 16 16 16 3 3 Greatest Overweight (x) . | . . . . . . . Average Overweight (x) . | . . . . . . . Largest Inventory Capacity 6 | 6 6 6 6 6 4 4 Average Capacity 4 | 4 6 6 6 4 4 4 Most Carried 6 | 6 6 6 6 6 . . Average Carried 2 | 2 6 6 6 . . . Final Capacity 6 | 6 6 6 6 4 4 4 Final Carried 6 | 6 6 6 6 . . . Class Distribution -------------------- 100% | Mutant Dominant Class ---------------- Mutant | -10/Materials Mutant | -10/Mines Mutant | -9/Materials Mutant | -8/Materials Mutant | -7/Factory Mutant | -6/Factory Resources | -11 -10 -10 -9 -8 -7 -6 ----------- Run | Scr Mat Min Mat Mat Fac Fac Matter Collected 282 | 214 57 11 . . . . Remotely . | . . . . . . . Salvage Created 161 | . 144 17 . . . . Parts 5 | . 5 . . . . . Haulers Intercepted . | . . . . . . . Recyclers Shooed . | . . . . . . . Parts Field Recycled . | . . . . . . . Retrieved Matter . | . . . . . . . Parts Self-Destructed . | . . . . . . . Prevented . | . . . . . . . Kills | -11 -10 -10 -9 -8 -7 -6 ------- Run | Scr Mat Min Mat Mat Fac Fac Combat Hostiles Destroyed 6 | . 5 1 . . . . Guns 6 | . 5 1 . . . . Classes Destroyed 3 | . 2 1 . . . . Swarmer 3 | . 3 . . . . . Grunt 2 | . 2 . . . . . Assembled 1 | . . 1 . . . . Best Kill Streak 5 | . 5 1 . . . . Combat Bots Only 5 | . 5 1 . . . . Max Kills in Single Turn 1 | . 1 1 . . . . Gunslinging . | . . . . . . . Exploded . | . . . . . . . Melee . | . . . . . . . Uniques/NPCs Destroyed . | . . . . . . . Combat | -11 -10 -10 -9 -8 -7 -6 -------- Run | Scr Mat Min Mat Mat Fac Fac Damage Taken 1503 | . 117 134 215 164 23 850 Core 1243 | . 46 60 100 164 23 850 Absorbed by Shields . | . . . . . . . Core Remaining (%) 79 | 100 . 57 75 70 96 . Volleys Fired 22 | . 11 11 . . . . Largest 2 | . 2 2 . . . . Hottest 70 | . 70 70 . . . . Shots Fired 44 | . 22 22 . . . . Gun 44 | . 22 22 . . . . Cannon . | . . . . . . . Launcher . | . . . . . . . Special . | . . . . . . . Kinetic 22 | . 11 11 . . . . Thermal 22 | . 11 11 . . . . Explosive . | . . . . . . . Electromagnetic . | . . . . . . . Robot Hit Streak 18 | . 15 18 . . . . Robot Miss Streak 2 | . 2 . . . . . Penetration Max . | . . . . . . . Secondary Targets 3 | . 3 . . . . . Max Gunslinging Chain 1 | . 1 . . . . . Shots Hit Robots 20 | . 17 3 . . . . Core Hits 19 | . 8 3 5 1 . 2 Critical Hits . | . . . . . . . Critical Kills . | . . . . . . . Critical Parts Destroyed . | . . . . . . . Melee Attacks . | . . . . . . . Impact . | . . . . . . . Slashing . | . . . . . . . Piercing . | . . . . . . . Sneak Attacks . | . . . . . . . Combat Hostiles . | . . . . . . . Follow-up Attacks . | . . . . . . . Damage Inflicted 277 | . 160 50 19 15 . 33 Guns 193 | . 160 33 . . . . Cannons . | . . . . . . . Explosions . | . . . . . . . Melee . | . . . . . . . Ramming 84 | . . 17 19 15 . 33 Kinetic 58 | . 49 9 . . . . Thermal 135 | . 111 24 . . . . Explosive . | . . . . . . . Electromagnetic . | . . . . . . . Impact . | . . . . . . . Slashing . | . . . . . . . Piercing . | . . . . . . . Highest Corruption 2 | . . . 2 . . . Average Corruption 2 | . . . 2 . . . Corruption Purged . | . . . . . . . Overload Shots . | . . . . . . . Overflow Damage . | . . . . . . . Projectiles . | . . . . . . . Explosions . | . . . . . . . Melee . | . . . . . . . Knockbacks . | . . . . . . . Impact . | . . . . . . . Kinetic . | . . . . . . . Secondary . | . . . . . . . Self-Inflicted Damage 37 | . . 8 8 7 . 14 Shots . | . . . . . . . Rammed 28 | . . 6 10 3 . 9 Targets Rammed 28 | . . 6 10 3 . 9 Kicked . | . . . . . . . Crushed . | . . . . . . . Highest Temperature 200 | . 200 40 . . . . Average Temperature 67 | . 98 19 . . . . Received Heat Transfer 584 | . 30 104 150 117 . 183 Siege Activations . | . . . . . . . Robots Corrupted . | . . . . . . . Combat Hostiles . | . . . . . . . Parts Fried . | . . . . . . . Impact Corruptions . | . . . . . . . Robots Melted . | . . . . . . . Combat Hostiles . | . . . . . . . Parts Melted 2 | . 2 . . . . . Heat Transferred 407 | . 333 74 . . . . Parts Sabotaged . | . . . . . . . Parts Stolen . | . . . . . . . Parts Stripped . | . . . . . . . Power Chain Reactions . | . . . . . . . Missiles Intercepted . | . . . . . . . Alert | -11 -10 -10 -9 -8 -7 -6 ------- Run | Scr Mat Min Mat Mat Fac Fac Peak Influence 140 | . 120 54 49 47 48 140 Average Influence 44 | . 47 50 24 29 37 69 Maximum Alert Level . | . . . . . . . Low Security (%) 100 | 100 100 100 100 100 100 100 Level 1 . | . . . . . . . Level 2 . | . . . . . . . Level 3 . | . . . . . . . Level 4 . | . . . . . . . Level 5 . | . . . . . . . High Security . | . . . . . . . Max Security . | . . . . . . . Squads Dispatched 6 | . . . 2 2 . 2 Investigation 1 | . . . . . . 1 Extermination . | . . . . . . . Reinforcement 5 | . . . 2 2 . 1 Assault . | . . . . . . . Garrison . | . . . . . . . Intercept . | . . . . . . . Construction Impeded . | . . . . . . . Haulers Reinforced . | . . . . . . . Stealth | -11 -10 -10 -9 -8 -7 -6 --------- Run | Scr Mat Min Mat Mat Fac Fac Distress Signals 2 | . . . . . . 2 Communications Jammed . | . . . . . . . Distress Signals . | . . . . . . . Times Spotted 50 | . 5 5 10 7 5 18 Peak Tracking Total 8 | . 4 3 8 5 4 8 Tactical Retreats 5 | . . . . . 1 4 Traps | -11 -10 -10 -9 -8 -7 -6 ------- Run | Scr Mat Min Mat Mat Fac Fac Traps Triggered 4 | . 2 . . . 1 1 Indirectly . | . . . . . . . Trap Hack Attempts . | . . . . . . . Triggered . | . . . . . . . Disarmed . | . . . . . . . Reprogrammed . | . . . . . . . Reused . | . . . . . . . Traps Extracted . | . . . . . . . Installed . | . . . . . . . Triggered . | . . . . . . . Machines | -11 -10 -10 -9 -8 -7 -6 ---------- Run | Scr Mat Min Mat Mat Fac Fac Machines Disabled . | . . . . . . . Max in Single Turn . | . . . . . . . Machines Sabotaged . | . . . . . . . Garrisons Compromised . | . . . . . . . Overloaded Fab Kills . | . . . . . . . Fab Network Shutdowns . | . . . . . . . Hacking | -11 -10 -10 -9 -8 -7 -6 --------- Run | Scr Mat Min Mat Mat Fac Fac Machines Accessed . | . . . . . . . Terminals . | . . . . . . . Fabricators . | . . . . . . . Repair Stations . | . . . . . . . Recycling Units . | . . . . . . . Scanalyzers . | . . . . . . . Garrison Access . | . . . . . . . Total Hacks . | . . . . . . . Successful . | . . . . . . . Failed . | . . . . . . . Catastrophic . | . . . . . . . Database Lockouts . | . . . . . . . Manual . | . . . . . . . Terminals . | . . . . . . . Fabricators . | . . . . . . . Repair Stations . | . . . . . . . Recycling Units . | . . . . . . . Scanalyzers . | . . . . . . . Garrison Access . | . . . . . . . Terminal Hacks . | . . . . . . . Fabricator Hacks . | . . . . . . . Repair Station Hacks . | . . . . . . . Recycling Unit Hacks . | . . . . . . . Scanalyzer . | . . . . . . . Garrison Access Hacks . | . . . . . . . Unauthorized Hacks . | . . . . . . . Terminals . | . . . . . . . Fabricators . | . . . . . . . Repair Stations . | . . . . . . . Recycling Units . | . . . . . . . Scanalyzers . | . . . . . . . Garrison Access . | . . . . . . . Data Cores Recovered . | . . . . . . . Used . | . . . . . . . Hacking Detections . | . . . . . . . Full Trace Events . | . . . . . . . Feedback Events . | . . . . . . . Feedback Blocked . | . . . . . . . Robot Schematics Acquired . | . . . . . . . Robots Built . | . . . . . . . Matter . | . . . . . . . Time . | . . . . . . . Total Robot Build Rating . | . . . . . . . Part Schematics Acquired . | . . . . . . . Parts Built . | . . . . . . . Matter . | . . . . . . . Time . | . . . . . . . Total Part Build Rating . | . . . . . . . Parts Repaired . | . . . . . . . Time . | . . . . . . . Parts Recycled . | . . . . . . . Recycled Matter . | . . . . . . . Retrieved Matter . | . . . . . . . Retrieved Components . | . . . . . . . Parts Scanalyzed . | . . . . . . . Part Schematics Acquired . | . . . . . . . Parts Damaged . | . . . . . . . Bothacking | -11 -10 -10 -9 -8 -7 -6 ------------ Run | Scr Mat Min Mat Mat Fac Fac Used RIF Installer . | . . . . . . . Robots Hacked . | . . . . . . . Non-combat . | . . . . . . . Combat . | . . . . . . . Robot Hacks Applied . | . . . . . . . Relay Couplers Released . | . . . . . . . Robots Rewired . | . . . . . . . Allies Hacked . | . . . . . . . Hacks Repelled . | . . . . . . . Allies | -11 -10 -10 -9 -8 -7 -6 -------- Run | Scr Mat Min Mat Mat Fac Fac Total Allies . | . . . . . . . Largest Group . | . . . . . . . Highest-Rated Group . | . . . . . . . Highest-Rated Ally . | . . . . . . . Total Orders . | . . . . . . . Ally Attacks . | . . . . . . . Total Damage . | . . . . . . . Kills . | . . . . . . . Allies Corrupted . | . . . . . . . Allies Melted . | . . . . . . . Intel | -11 -10 -10 -9 -8 -7 -6 ------- Run | Scr Mat Min Mat Mat Fac Fac Robot Analysis Total . | . . . . . . . Derelict Logs Recovered . | . . . . . . . Drone Launches . | . . . . . . . Drone Recoveries . | . . . . . . . Exploration | -11 -10 -10 -9 -8 -7 -6 ------------- Run | Scr Mat Min Mat Mat Fac Fac Turns Passed 833 | 81 103 60 87 85 129 288 Spaces Moved 1172 | 92 79 24 78 141 258 500 Core 931 | 41 . . . 132 258 500 Treads . | . . . . . . . Legs . | . . . . . . . Wheels 241 | 51 79 24 78 9 . . Hover . | . . . . . . . Flight . | . . . . . . . Fastest Speed 50 | 50 90 100 100 50 50 50 Average Speed 59 | 72 90 100 100 53 50 50 Slowest Speed 100 | 100 100 100 100 100 50 50 Overloaded Moves . | . . . . . . . Propulsion Burnouts . | . . . . . . . Robots Hopped . | . . . . . . . Cave-ins Triggered . | . . . . . . . Exploration Rate (%) 12 | 5 18 13 13 17 10 11 Regions Visited 6 Branch Regions 1 Pre-discovered Areas . | . . . . . . . Known Exits Taken . | . . . . . . . Unknown Exits Taken 6 | 1 1 1 1 1 1 . Scrap Searched . | . . . . . . . Spaces Dug . | . . . . . . . Terrain Destroyed . | . . . . . . . Melee . | . . . . . . . Projectile . | . . . . . . . AOE . | . . . . . . . Actions | -11 -10 -10 -9 -8 -7 -6 --------- Run | Scr Mat Min Mat Mat Fac Fac Total 1269 | 103 90 40 87 155 257 537 Wait 30 | . 1 . . . . 29 Move 1166 | 91 78 23 77 140 257 500 Hop . | . . . . . . . Pick Up 6 | 6 . . . . . . Fast Attach 6 | 6 . . . . . . Attach 1 | . . . . 1 . . Detach 3 | . . . . 3 . . Swap . | . . . . . . . Drop 8 | . . . . 8 . . Fire 22 | . 11 11 . . . . Melee . | . . . . . . . Ram 27 | . . 6 10 3 . 8 Kick . | . . . . . . . Crush . | . . . . . . . Escape Stasis . | . . . . . . . Rewire . | . . . . . . . Trap . | . . . . . . . Miscellaneous . | . . . . . . . Route ------- -11/Scrapyard -10/Materials -10/Mines -9/Materials -8/Materials -7/Factory -6/Factory History --------- Turn | Location | Event 3 | -11/Scrapyard | Discovered new exit (range 15) 82 | -11/Scrapyard | Entered Materials 177 | -10/Materials | Discovered new exit (range 9) 185 | -10/Materials | Entered Mines 194 | -10/Mines | Excavation squad dispatched 194 | -10/Mines | A large section of the Mines collapsed 231 | -10/Mines | Discovered new exit (range 15) 245 | -10/Mines | Entered Materials 245 | -9/Materials | Evolved 2 slots: Propulsion x2 311 | -9/Materials | Build established: Mutant 328 | -9/Materials | Discovered new exit (range 4) 332 | -9/Materials | Entered another Materials area 332 | -8/Materials | Evolved 2 slots: Power x2 409 | -8/Materials | Discovered new exit (range 15) 417 | -8/Materials | Entered Factory 417 | -7/Factory | Evolved 2 slots: Weapon x2 539 | -7/Factory | Discovered new exit (range 16) 546 | -7/Factory | Entered another Factory area 546 | -6/Factory | Evolved 2 slots: Utility x2 696 | -6/Factory | Core integrity fell below 50% 813 | -6/Factory | Core integrity fell below 20% 834 | -6/Factory | Core destroyed Last Messages --------------- 00683_ ALERT: Hostiles spotted, dispatching reinforcements to Terminal F012. 00693_ Slammed into Y-54 Guardian. 00722_ Slug penetrates Wall. 00722_ Slug penetrates H-66 Slayer. 00722_ Penetrated by Slug. 00737_ Slug penetrates Wall. 00773_ Triggered Alarm Trap. 00773_ An alarm sounds. 00773_ ALERT: Alarm triggered, dispatching investigation squad. 00774_ U-05 Engineer lays Concrete. 00809_ Slug penetrates Wall. 00812_ Penetrated by Slug. 00825_ W-25 Informer distress signal alerts nearby ally. 00826_ Slammed into W-25 Informer. 00827_ Slammed into T-07 Excavator. 00828_ Slammed into K-01 Serf. 00831_ Slammed into S-27 Virus. 00831_ Destabilizing: Core damaged (-8). 00832_ Slammed into K-01 Serf. Map ----- +----------------------------------------------------+ | ?????????????????????????????????# #??? ???? | | ?????????????????????????????????# #? !] ?? | | ?????????????????????????????????# # *] ? | | ?????????????????????????????????# # * ? | | ?????????????????????????????????# #? ?? | | ?????????????????????????????????# #? ?? | | ?????????????????????????????????# #??"""""??? | | ?????????????????????????????????+ #?? ??? | | ?????????????????????????????????# #???"""???? | | ?????????????????????????????????# #??? ???? | | ?????????????????????????????????# #####+##### | | ?????????????????????????????????# | | ?????????????????????????????????# | | ?????????????????????????????????# | | ?????????????????????????????????# | | ?????????????????????????????????# % | | ?????????????????????????????????####/########## | | ?????????????????????????????????# #????# | | ?????????????????????????????????# #????# | | ?????????????????????????????????# #????# | | ?????????????????????????????????# #????# | | ?????????????????????????????????# #????# | | ?????????????????# ???###+###????# = #????# | | ?????????????????# ## #????# #????# | | ?????????????????# ###### #????# | | ?????????? t [k@% sR%%%+ #????# | | ?????????????????# s###############????# | | ?????????????????## ### #??????????????????# | | ??????????????????????## s##??????????????????# | | ???????????????????????# k #???????????????????# | | ???????????????????????# #????????????????###### | | ???????????????????????# #????????????????# | | ???????????????????????# #????????????????# " " | | ???????????????????????#R #????????????????# " " | | ???????????????????????# #????????????????# " " | | ???????????????????????/k +????????????????# " " | | ???????????????????????# #????????????????# " " | | ???????????????????????# #????????????????# " " | | ???????????????????????# u?????????????????# " " | | ???????????????????????# ?????????????????# " " | | ???????????????????????? ?????????????????# " " | | ????????????????????????????????????????????# | | ????????????????????????????????????????????###### | | ?????????????????????????????????????????????????? | | ?????????????????????????????????????????????????? | | ?????????????????????????????????????????????????? | | ?????????????????????????????????????????????????? | | ?????????????????????????????????????????????????? | | ?????????????????????????????????????????????????? | | ?????????????????????????????????????????????????? | +----------------------------------------------------+ Best States ------------- Heat Dissipation 37 Energy Generation 10 Energy Capacity 125 Matter Stores 300 Matter Capacity 300 Sight Range 16 Terrain Scan Density 10 Resistance: KI 20 Resistance: TH 20 Resistance: EX 20 Resistance: EM 20 Resistance: I 20 Resistance: S 20 Resistance: P 20 Evasion (%) 50 Offensive Hacking 10 Item Schematics ----------------- None Robot Schematics ------------------ None Fabricated ------------ Nothing Alien Tech Used ----------------- None Achievements -------------- None Challenges ------------ None Game ------ Seed 645caabb Manual? 1 Play Time 00:15:04 Cumulative 7.7 hours Start 2020.08.17 @ 04:34:46 End 2020.08.17 @ 04:46:39 Sessions 1 Manual Loads 0 Difficulty Adventurer Special Mode None Game No. 12 Rogue 4 Adventurer 6 Explorer 2 Win Type - Total 0 Types 0/0/0/0/0/0/0 Lore% 11 Gallery% 16 Achievement% 17 Wizard Run 0 Options --------- ASCII 1 Keyboard 1 Movement Numpad Keybinds 0 Fullscreen 1 Font 18/Terminus Map View 76x50 Tactical HUD 1 Map Filters NONE Filters NONE Steam 1 RUN: 7dd760c8-3c2e-4d36-b7e9-1d64cf8994d6